bitfinex/quotes_SOLUSD_20250529
["timestamp","ask_amount","ask_price","bid_price","bid_amount"]
[1748485829385,8.33333333,173.66,173.63,5.75906315]
[1748485829587,8.33333333,173.66,173.65,26.0]
[1748485829798,8.33333333,173.66,173.65,50.4083589]
[1748485830096,8.33333333,173.66,173.65,31.75871004]
[1748485830394,8.33333333,173.66,173.65,52.82988092]
[1748485830599,8.33333333,173.66,173.62,0.14216157]
[1748485830600,8.33333333,173.66,173.62,44.64964886]
[1748485830763,8.33333333,173.66,173.63,5.75937338]
[1748485830963,29.40450421,173.66,173.61,7.38770273]
[1748485831166,29.40450421,173.66,173.61,22.69897088]
[1748485831399,8.33333333,173.66,173.61,1.6278]
[1748485831883,8.33333333,173.66,173.62,21.07117088]
[1748485832263,8.33333333,173.66,173.61,7.38777173]
[1748485834394,8.33333333,173.66,173.61,7.38779307]
[1748485834563,8.33333333,173.66,173.61,33.38779307]
[1748485834764,8.33333333,173.66,173.61,1.6278]
[1748485835370,8.33333333,173.66,173.62,21.07117088]
[1748485835569,8.33333333,173.66,173.61,1.6278]
[1748485835778,8.33333333,173.66,173.59,21.07117088]
[1748485835982,21.07117088,173.64,173.58,6.27215577]
[1748485836477,8.33333333,173.66,173.63,21.07117088]
[1748485836694,8.33333333,173.66,173.64,21.07117088]
[1748485836902,8.33333333,173.66,173.63,21.07117088]
[1748485837220,8.33333333,173.66,173.64,21.07117088]
[1748485837426,8.33333333,173.66,173.61,26.0]
[1748485838018,8.33333333,173.66,173.63,21.07117088]
[1748485838230,29.40450421,173.66,173.61,21.07117088]
[1748485838392,21.07117088,173.65,173.6,21.07117088]
[1748485838793,8.33333333,173.66,173.61,21.07117088]
[1748485839095,21.07117088,173.65,173.58,0.51114738]
[1748485839412,35.16312528,173.66,173.61,21.07117088]
[1748485839592,29.40450421,173.66,173.61,21.07117088]
[1748485839795,8.33333333,173.66,173.61,21.07117088]
[1748485840014,14.09175969,173.66,173.61,21.07117088]
[1748485840209,14.09175969,173.66,173.59,5.76069763]
[1748485840210,35.16293057,173.66,173.59,5.76069763]
[1748485840417,21.07117088,173.65,173.6,21.07117088]
[1748485840598,8.33333333,173.66,173.62,21.07117088]
[1748485841501,29.40450421,173.66,173.61,21.07117088]
[1748485841701,14.09180812,173.66,173.6,21.07117088]
[1748485841903,35.162979,173.66,173.61,21.07117088]
[1748485842225,29.40450421,173.66,173.61,21.07117088]
[1748485842518,8.33333333,173.66,173.64,21.07117088]
[1748485842889,29.40450421,173.66,173.61,21.07117088]
[1748485843093,8.33333333,173.66,173.61,21.07117088]
[1748485843324,29.40450421,173.66,173.61,21.07117088]
[1748485843502,29.40450421,173.66,173.62,21.07117088]
[1748485843503,8.33333333,173.66,173.62,21.07117088]
[1748485843895,8.33333333,173.66,173.63,21.07117088]
[1748485844398,8.33333333,173.66,173.61,5.75994387]
[1748485844596,8.33333333,173.66,173.63,21.07117088]
[1748485845399,8.33333333,173.66,173.65,21.07117088]
[1748485846125,8.33333333,173.66,173.65,22.70287088]
[1748485846725,8.33333333,173.66,173.65,1.6317]
[1748485847025,8.33333333,173.66,173.65,73.25339135]
[1748485847201,8.33333333,173.66,173.65,73.76433268]
[1748485847726,6.4429,173.84,173.69,26.0]
[1748485848029,6.4429,173.84,173.78,21.07117088]
[1748485848200,26.82360145,173.84,173.79,21.07117088]
[1748485848401,1.6076,173.86,173.8,21.07117088]
[1748485848598,6.5412,173.88,173.81,21.07117088]
[1748485848901,27.61237088,173.88,173.78,44.64964886]
[1748485849107,25.28741485,173.87,173.79,5.754071]
[1748485849303,25.28741485,173.87,173.79,5.89623257]
[1748485849304,4.21624397,173.87,173.79,5.89623257]
[1748485849503,4.21624397,173.87,173.79,26.0]
[1748485849911,4.21624397,173.87,173.84,21.07117088]
[1748485850203,4.21624397,173.87,173.8,18.64964886]
[1748485850403,4.21624397,173.87,173.82,26.0]
[1748485850620,4.21624397,173.87,173.81,1.6279]
[1748485850822,4.21624397,173.87,173.82,18.64964886]
[1748485851021,4.21624397,173.87,173.82,18.933972]
[1748485851222,4.21624397,173.87,173.81,1.6279]
[1748485851408,9.96767185,173.87,173.8,0.46525203]
[1748485851605,4.21624397,173.87,173.8,0.46525203]
[1748485851811,4.21624397,173.87,173.81,18.64964886]
[1748485852130,21.07117088,173.86,173.8,26.46525203]
[1748485852306,9.9677005,173.87,173.8,26.46525203]
[1748485852508,31.03887138,173.87,173.8,26.46525203]
[1748485852821,21.07117088,173.86,173.8,0.46525203]
[1748485853129,4.21624397,173.87,173.85,21.07117088]
[1748485853430,9.96769999,173.87,173.85,21.07117088]
[1748485853610,9.96774949,173.87,173.82,26.0]
[1748485853816,4.21624397,173.87,173.85,21.07117088]
[1748485854129,9.96777285,173.87,173.8,0.46525203]
[1748485854434,24.34633154,173.87,173.8,0.46525203]
[1748485854904,21.07117088,173.85,173.8,0.46525203]
[1748485855103,21.07117088,173.86,173.8,21.53642291]
[1748485855504,5.75175428,173.86,173.8,0.46525203]
[1748485855932,5.75175428,173.86,173.81,21.07117088]
[1748485856300,5.75175428,173.86,173.8,0.46525203]
[1748485856505,5.75175428,173.86,173.81,21.07117088]
[1748485856701,5.75175428,173.86,173.8,0.46525203]
[1748485856919,9.96794236,173.87,173.81,44.64964886]
[1748485857209,9.96794236,173.87,173.82,21.07117088]
[1748485857506,9.96794236,173.87,173.83,21.07117088]
[1748485857911,9.96794236,173.87,173.82,26.0]
[1748485858208,9.96794236,173.87,173.8,0.46525203]
[1748485858209,21.07117088,173.83,173.8,0.46525203]
[1748485858613,24.34650105,173.87,173.8,0.46525203]
[1748485859112,5.75241601,173.84,173.8,0.46525203]
[1748485859321,5.75175428,173.86,173.82,21.07117088]
[1748485859721,5.75175428,173.86,173.81,21.07117088]
[1748485860121,26.82292516,173.86,173.81,21.07117088]
[1748485860524,26.82292516,173.86,173.8,0.46525203]
[1748485860525,20.13113999,173.86,173.8,0.46525203]
[1748485860851,48.88991141,173.86,173.8,0.46525203]
[1748485861015,21.07117088,173.82,173.8,0.46525203]
[1748485861215,21.07117088,173.81,173.8,0.46525203]
[1748485861933,6.2432,173.84,173.8,0.46525203]
[1748485862134,20.13113999,173.86,173.8,0.46525203]
[1748485862662,21.07117088,173.85,173.8,0.46525203]
[1748485862860,21.07117088,173.85,173.8,21.53642291]
[1748485863020,41.20231087,173.86,173.8,21.53642291]
[1748485863217,41.20231087,173.86,173.8,0.46525203]
[1748485863414,41.20231087,173.86,173.81,21.07117088]
[1748485863415,5.75175428,173.86,173.81,21.07117088]
[1748485863640,9.96772159,173.87,173.8,26.46525203]
[1748485863843,9.96772159,173.87,173.81,44.64964886]
[1748485864342,4.21624397,173.87,173.84,21.07117088]
[1748485865063,4.21624397,173.87,173.86,21.07117088]
[1748485865353,4.21624397,173.87,173.86,39.72081974]
[1748485866222,4.21624397,173.87,173.85,18.64964886]
[1748485866846,4.21624397,173.87,173.86,21.07117088]
[1748485867043,4.21624397,173.87,173.85,18.64964886]
[1748485867246,4.21624397,173.87,173.86,39.72081974]
[1748485867448,4.21624397,173.87,173.86,18.64964886]
[1748485867769,28.497,174.0,173.9,50.75604886]
[1748485867981,21.07117088,173.97,173.9,50.75604886]
[1748485868130,34.24415948,174.0,173.9,26.0]
[1748485868339,1.6395,173.96,173.86,82.78]
[1748485868534,6.5254,173.95,173.77,13.47631278]
[1748485868840,21.07117088,173.85,173.8,21.53642291]
[1748485869035,0.28432314,173.93,173.81,21.07117088]
[1748485869239,5.74977,173.92,173.83,26.0]
[1748485869443,5.74977,173.92,173.86,21.07117088]
[1748485869856,5.74977,173.92,173.82,18.64964886]
[1748485869857,5.74977,173.92,173.82,0.14216157]
[1748485870163,5.74977,173.92,173.84,21.07117088]
[1748485870342,21.07117088,173.89,173.84,21.07117088]
[1748485870539,21.07117088,173.88,173.83,21.07117088]
[1748485870745,21.07117088,173.88,173.81,18.64964886]
[1748485870954,21.07117088,173.86,173.8,0.46525203]
[1748485871151,26.82303609,173.86,173.81,21.07117088]
[1748485871369,5.75010062,173.91,173.8,26.46525203]
[1748485871666,21.07117088,173.88,173.83,21.07117088]
[1748485871844,5.75010062,173.91,173.83,21.07117088]
[1748485872029,5.75010062,173.91,173.81,18.64964886]
[1748485872235,5.75010062,173.91,173.85,21.07117088]
[1748485872456,21.07117088,173.9,173.85,21.07117088]
[1748485872751,5.75010062,173.91,173.85,21.07117088]
[1748485872942,21.18217841,173.95,173.81,18.64964886]
[1748485872943,21.07117088,173.89,173.81,26.0]
[1748485873143,21.07117088,173.89,173.84,21.07117088]
[1748485873347,5.74910888,173.94,173.85,21.07117088]
[1748485873539,5.74910888,173.94,173.87,21.07117088]
[1748485873763,21.07117088,173.93,173.84,26.0]
[1748485874284,12.27418922,173.95,173.84,26.0]
[1748485875102,21.07117088,173.92,173.87,21.07117088]
[1748485875784,26.82027976,173.94,173.89,21.07117088]
[1748485876483,5.74910888,173.94,173.87,21.07117088]
[1748485876691,5.74910888,173.94,173.84,26.0]
[1748485876877,5.74910888,173.94,173.88,21.07117088]
[1748485877262,21.07117088,173.92,173.84,26.0]
[1748485877462,21.07117088,173.92,173.87,21.07117088]
[1748485877657,21.07117088,173.92,173.84,26.0]
[1748485877983,21.07117088,173.92,173.87,21.07117088]
[1748485878167,21.07117088,173.93,173.88,21.07117088]
[1748485878877,26.81994926,173.95,173.85,5.75208513]
[1748485879080,26.81994926,173.95,173.89,21.07117088]
[1748485879276,7.38798658,173.96,173.9,21.07117088]
[1748485879476,5.74848658,173.96,173.86,44.64964886]
[1748485879802,26.81965746,173.96,173.86,44.64964886]
[1748485879973,5.74848658,173.96,173.86,44.64964886]
[1748485880180,21.07117088,173.95,173.9,21.07117088]
[1748485880381,5.7477871,173.98,173.92,21.07117088]
[1748485880568,26.81933437,173.97,173.92,21.07117088]
[1748485880770,5.74816349,173.97,173.92,21.07117088]
[1748485880966,5.74780101,173.98,173.93,21.07117088]
[1748485881170,21.07117088,173.97,173.92,21.07117088]
[1748485881704,5.74780101,173.98,173.93,21.07117088]
[1748485881862,5.74780101,173.98,173.94,21.07117088]
[1748485882059,5.74751071,173.99,173.95,21.07117088]
[1748485882263,26.81868159,173.99,173.94,21.07117088]
[1748485882568,28.497,174.0,173.94,26.0]
[1748485883094,28.497,174.0,173.98,21.07117088]
[1748485883393,28.497,174.0,173.94,28.88389356]
[1748485883595,34.24429107,174.0,173.94,28.88389356]
[1748485884075,34.24429107,174.0,173.94,2.88389356]
[1748485884275,34.24429107,174.0,173.89,1.5277]
[1748485884481,34.24429107,174.0,173.9,21.07117088]
[1748485884685,21.07117088,173.96,173.87,82.76]
[1748485884999,21.07117088,173.94,173.89,21.07117088]
[1748485885208,48.61210716,174.0,173.9,21.07117088]
[1748485885566,48.61210716,174.0,173.88,18.64964886]
[1748485885890,21.07117088,173.96,173.91,21.07117088]
[1748485886093,48.61210716,174.0,173.87,82.76]
[1748485886592,21.07117088,173.95,173.91,21.07117088]
[1748485886769,21.07117088,173.95,173.87,82.76]
[1748485886969,21.07117088,173.96,173.91,21.07117088]
[1748485887168,21.07117088,173.95,173.9,21.07117088]
[1748485887371,48.61210716,174.0,173.87,82.76]
[1748485887372,21.07117088,173.94,173.87,82.76]
[1748485887570,77.34773934,174.0,173.87,85.62609392]
[1748485887777,21.07117088,173.93,173.88,21.07117088]
[1748485888176,21.07117088,173.93,173.87,85.62609392]
[1748485888575,5.75010062,173.91,173.87,85.62609392]
[1748485888994,26.8212715,173.91,173.87,85.62609392]
[1748485889211,5.75010062,173.91,173.84,21.07117088]
[1748485889406,21.07117088,173.89,173.85,2.92155843]
[1748485889577,21.07117088,173.87,173.8,2.06485203]
[1748485889778,21.07117088,173.87,173.81,26.0]
[1748485890116,21.07117088,173.87,173.82,21.07117088]
[1748485890277,7.35450062,173.91,173.85,21.07117088]
[1748485890477,28.4256715,173.91,173.86,21.07117088]
[1748485890680,7.35450062,173.91,173.87,21.07117088]
[1748485890994,5.75010062,173.91,173.87,21.07117088]
[1748485891400,26.8212715,173.91,173.86,21.07117088]
[1748485891987,14.37286527,173.94,173.82,5.7530487]
[1748485892206,21.07117088,173.91,173.86,21.07117088]
[1748485892408,14.37286527,173.94,173.82,5.7530487]
[1748485892680,21.07117088,173.89,173.81,5.75338559]
[1748485892887,21.07117088,173.88,173.8,30.96974376]
[1748485893195,21.07117088,173.85,173.8,24.44131464]
[1748485893383,21.07117088,173.85,173.8,23.97606261]
[1748485893582,6.4503,173.9,173.8,23.97606261]
[1748485893785,6.4503,173.9,173.8,2.90489173]
[1748485893980,5.75076197,173.89,173.77,6.6432]
[1748485894182,5.75076197,173.89,173.77,23.97762303]
[1748485894183,20.1276669,173.89,173.77,23.97762303]
[1748485894396,20.1276669,173.89,173.76,84.3694]
[1748485894619,21.07117088,173.83,173.76,84.3694]
[1748485894809,21.07117088,173.83,173.78,21.07117088]
[1748485894978,20.1276669,173.89,173.78,21.07117088]
[1748485895311,1.5706,173.93,173.85,21.07117088]
[1748485895511,1.5706,173.93,173.8,6.2639]
[1748485895706,21.07117088,173.9,173.8,6.2639]
[1748485895898,26.82094088,173.92,173.84,5.75241601]
[1748485896204,21.07117088,173.91,173.86,21.07117088]
[1748485896511,5.74977,173.92,173.87,21.07117088]
[1748485896701,21.07117088,173.93,173.88,21.07117088]
[1748485897229,21.07117088,173.94,173.88,21.07117088]
[1748485897434,5.74910888,173.94,173.88,21.07117088]
[1748485897615,21.07117088,173.93,173.84,0.48678343]
[1748485897817,5.74977,173.92,173.88,21.07117088]
[1748485898505,21.07117088,173.94,173.88,21.07117088]
[1748485898818,21.07117088,173.95,173.9,21.07117088]
[1748485899212,21.07117088,173.96,173.91,21.07117088]
[1748485899522,1.6377,173.97,173.92,21.07117088]
[1748485899707,21.07117088,173.97,173.92,21.07117088]
[1748485899915,26.81932227,173.97,173.92,21.07117088]
[1748485900119,26.81932227,173.97,173.88,6.4288]
[1748485900311,21.07117088,173.96,173.91,21.07117088]
[1748485900501,5.74815139,173.97,173.88,6.4288]
[1748485900702,21.07117088,173.96,173.88,6.4288]
[1748485900941,5.74815139,173.97,173.88,6.4288]
[1748485901146,5.74745675,173.99,173.94,21.07117088]
[1748485901362,28.497,174.0,173.96,21.07117088]
[1748485901508,49.56817088,174.0,173.95,21.07117088]
[1748485901708,21.07117088,173.99,173.91,26.0]
[1748485901928,5.7477871,173.98,173.91,26.0]
[1748485902117,26.81895798,173.98,173.92,21.07117088]
[1748485902536,21.07117088,173.97,173.92,21.07117088]
[1748485902718,26.81895798,173.98,173.93,21.07117088]
[1748485903040,21.07117088,173.97,173.89,26.0]
[1748485903248,21.07117088,173.97,173.92,21.07117088]
[1748485903409,26.81895798,173.98,173.93,21.07117088]
[1748485904130,5.7477871,173.98,173.94,21.07117088]
[1748485904960,5.74750608,173.99,173.92,5.7497047]
[1748485905150,5.74750608,173.99,173.95,21.07117088]
[1748485905349,21.07117088,173.97,173.9,5.75039715]
[1748485905550,21.07117088,173.96,173.91,21.07117088]
[1748485906041,5.74809286,173.98,173.92,21.07117088]
[1748485906344,26.81867775,173.99,173.94,21.07117088]
[1748485906552,5.74750687,173.99,173.94,21.07117088]
[1748485906742,26.81867775,173.99,173.94,21.07117088]
[1748485906930,5.74750687,173.99,173.94,21.07117088]
[1748485907132,5.74750687,173.99,173.91,5.75005224]
[1748485907338,26.81867775,173.99,173.94,21.07117088]
[1748485907539,5.74750687,173.99,173.91,5.75005224]
[1748485907845,26.81867775,173.99,173.94,21.07117088]
[1748485908057,5.74750687,173.99,173.94,21.07117088]
[1748485908347,55.31531062,174.0,173.95,21.07117088]
[1748485909047,34.24413974,174.0,173.95,21.07117088]
[1748485909569,34.24415363,174.0,173.96,21.07117088]
[1748485909778,34.24415363,174.0,173.9,20.12650948]
[1748485910073,34.24415363,174.0,173.96,21.07117088]
[1748485910074,28.497,174.0,173.96,21.07117088]
[1748485910955,55.31534261,174.0,173.95,21.07117088]
[1748485911162,28.497,174.0,173.96,21.07117088]
[1748485911998,28.497,174.0,173.92,5.74946161]
[1748485912185,28.497,174.0,173.96,21.07117088]
[1748485912676,28.497,174.0,173.97,21.07117088]
[1748485912882,28.497,174.0,173.99,21.07117088]
[1748485913186,28.497,174.0,173.93,26.0]
[1748485913499,28.497,174.0,173.96,21.07117088]
[1748485913668,28.497,174.0,173.93,26.0]
[1748485914085,28.497,174.0,173.96,21.07117088]
[1748485914294,49.56817088,174.0,173.96,21.07117088]
[1748485914707,49.56817088,174.0,173.93,31.74942429]
[1748485914708,28.497,174.0,173.93,31.74942429]
[1748485914915,28.497,174.0,173.92,27.6594]
[1748485914916,55.31539423,174.0,173.92,27.6594]
[1748485915074,21.07117088,173.96,173.88,8.0508]
[1748485915281,21.07117088,173.96,173.91,21.07117088]
[1748485915474,48.61203944,174.0,173.91,21.07117088]
[1748485915674,48.61203944,174.0,173.92,21.07117088]
[1748485916071,21.07117088,173.97,173.92,21.07117088]
[1748485916297,21.07117088,173.98,173.93,21.07117088]
[1748485916498,21.07117088,173.98,173.89,31.75051719]
[1748485916682,21.07117088,173.98,173.93,21.07117088]
[1748485917081,48.61203944,174.0,173.93,21.07117088]
[1748485917384,34.24422335,174.0,173.9,18.64964886]
[1748485917597,55.31539423,174.0,173.96,21.07117088]
[1748485917780,34.24422335,174.0,173.96,21.07117088]
[1748485918276,34.24422335,174.0,173.9,18.64964886]
[1748485918277,55.31539423,174.0,173.92,5.74963994]
[1748485918471,55.31539423,174.0,173.88,8.0508]
[1748485918472,21.07117088,173.97,173.88,8.0508]
[1748485918693,21.07117088,173.97,173.92,21.07117088]
[1748485919202,48.61203944,174.0,173.92,21.07117088]
[1748485919414,21.07117088,173.97,173.92,21.07117088]
[1748485919616,21.07117088,173.96,173.91,21.07117088]
[1748485919814,21.07117088,173.95,173.89,26.0]
[1748485920026,21.07117088,173.95,173.9,21.07117088]
[1748485920190,48.61203944,174.0,173.88,1.622]
[1748485920391,21.07117088,173.96,173.91,21.07117088]
[1748485920687,21.07117088,173.96,173.88,7.37283588]
[1748485920688,21.07117088,173.98,173.93,21.07117088]
[1748485920920,34.24422335,174.0,173.89,26.0]
[1748485921105,55.31539423,174.0,173.95,21.07117088]
[1748485921305,34.24422335,174.0,173.9,18.64964886]
[1748485921503,21.07117088,173.99,173.9,18.64964886]
[1748485921731,34.24422335,174.0,173.94,21.07117088]
[1748485921914,48.61203944,174.0,173.91,21.07117088]
[1748485922116,34.24422335,174.0,173.93,21.07117088]
[1748485922309,55.31539423,174.0,173.94,21.07117088]
[1748485922504,21.07117088,173.98,173.93,21.07117088]
[1748485922725,21.07117088,173.97,173.92,21.07117088]
[1748485923207,34.24422335,174.0,173.94,21.07117088]
[1748485923535,21.07117088,173.98,173.93,21.07117088]
[1748485923909,34.24422335,174.0,173.89,31.75072853]
[1748485924115,21.07117088,173.97,173.92,21.07117088]
[1748485924301,21.07117088,173.98,173.93,21.07117088]
[1748485925017,34.24422335,174.0,173.9,5.75042093]
[1748485925524,55.31539423,174.0,173.9,5.75042093]
[1748485925707,34.24422335,174.0,173.9,5.75042093]
[1748485926026,34.24422335,174.0,173.95,21.07117088]
[1748485926328,34.24422335,174.0,173.96,21.07117088]
[1748485926528,55.31539423,174.0,173.89,44.64964886]
[1748485926697,55.31539423,174.0,173.95,21.07117088]
[1748485926924,55.31539423,174.0,173.89,193.04964886]
[1748485927130,21.07117088,173.99,173.94,21.07117088]
[1748485927530,5.7477871,173.98,173.94,21.07117088]
[1748485927726,5.7477871,173.98,173.89,174.4]
[1748485927930,5.7477871,173.98,173.92,21.07117088]
[1748485928160,5.74750357,173.99,173.94,21.07117088]
[1748485928365,28.497,174.0,173.94,21.07117088]
[1748485928530,21.07117088,173.99,173.91,26.0]
[1748485928868,28.497,174.0,173.94,21.07117088]
[1748485929079,49.56817088,174.0,173.94,21.07117088]
[1748485929233,49.56817088,174.0,173.95,21.07117088]
[1748485929433,28.497,174.0,173.95,21.07117088]
[1748485929733,28.497,174.0,173.96,21.07117088]
[1748485930260,28.497,174.0,173.92,12.30157]
[1748485930564,28.497,174.0,173.96,21.07117088]
[1748485931338,49.56817088,174.0,173.92,52.67599502]
[1748485931533,28.497,174.0,173.95,21.07117088]
[1748485931861,28.497,174.0,173.96,21.07117088]
[1748485932068,28.497,174.0,173.97,21.07117088]
[1748485932284,28.497,174.0,173.99,47.07117088]
[1748485932565,26.8304,174.0,173.99,13.23018693]
[1748485932741,8.9588891,174.0,173.99,31.74959103]
[1748485932946,0.1,174.15,174.03,26.0]
[1748485933149,0.1,174.15,174.05,26.0]
[1748485933538,0.1,174.15,174.04,0.57428052]
[1748485933539,0.1,174.15,174.07,73.88715706]
[1748485933837,0.1,174.15,174.07,71.46563504]
[1748485934360,0.1,174.15,174.07,66.67896749]
[1748485934575,0.1,174.15,174.1,26.0]
[1748485934779,0.1,174.15,174.14,26.0]
[1748485935085,0.1,174.15,174.14,47.07117088]
[1748485935242,0.1,174.15,174.14,0.2005292]
[1748485935587,0.1,174.15,174.14,21.27170008]
[1748485935742,0.1,174.15,174.14,0.2005292]
[1748485936744,0.1,174.15,174.14,21.27170008]
[1748485936968,0.1,174.15,174.14,0.2005292]
[1748485939455,0.1,174.15,174.14,26.2005292]
[1748485940056,0.1,174.15,174.14,0.2005292]
[1748485940674,0.1,174.15,174.14,21.27170008]
[1748485940979,0.1,174.15,174.14,0.2005292]
[1748485942599,0.1,174.15,174.14,47.27170008]
[1748485942777,0.1,174.15,174.14,26.2005292]
[1748485943117,0.1,174.15,174.14,47.27170008]
[1748485943495,0.1,174.15,174.14,26.2005292]
[1748485944104,0.1,174.15,174.14,0.2005292]
[1748485944399,0.1,174.15,174.14,21.27170008]
[1748485944581,0.1,174.15,174.14,0.2005292]
[1748485945476,0.1,174.15,174.14,26.2005292]
[1748485945694,0.1,174.15,174.14,0.2005292]
[1748485946306,0.1,174.15,174.14,21.27170008]
[1748485946497,0.1,174.15,174.14,0.2005292]
[1748485947705,7.43867628,174.15,174.14,0.2005292]
[1748485948307,7.43867628,174.15,173.99,14.36805676]
[1748485948308,7.43867628,174.15,174.07,21.07117088]
[1748485948503,7.43867628,174.15,174.04,2.82849904]
[1748485948681,21.07117088,174.11,174.06,21.07117088]
[1748485949080,7.43867628,174.15,174.0,20.11494252]
[1748485949393,21.07117088,174.12,174.07,21.07117088]
[1748485949797,5.74250602,174.14,174.05,5.74533401]
[1748485949998,5.74250602,174.14,174.09,21.07117088]
[1748485950196,1.6965,174.15,174.12,21.07117088]
[1748485950510,1.6965,174.15,174.11,21.07117088]
[1748485950686,1.6965,174.15,174.05,20.1090226]
[1748485950887,1.6965,174.15,174.11,21.07117088]
[1748485951116,1.6965,174.15,174.05,20.1090226]
[1748485951423,1.6965,174.15,174.11,21.07117088]
[1748485951612,1.6965,174.15,174.12,21.07117088]
[1748485951792,0.1,174.15,174.12,21.07117088]
[1748485952120,0.1,174.15,174.09,0.45096634]
[1748485952815,21.07117088,174.13,174.09,0.45096634]
[1748485952985,21.07117088,174.1,174.09,0.45096634]
[1748485953206,28.76587088,174.1,174.09,0.45096634]
[1748485953407,7.6947,174.1,174.09,0.45096634]
[1748485953720,28.76587088,174.1,174.04,21.07117088]
[1748485953914,21.07117088,174.09,174.04,21.07117088]
[1748485954115,1.5647,174.14,174.04,5.74574391]
[1748485954342,1.5647,174.14,174.04,8.63659137]
[1748485954815,1.5647,174.14,174.07,21.07117088]
[1748485955016,1.5647,174.14,174.09,21.07117088]
[1748485955222,1.5647,174.14,174.04,8.63659137]
[1748485955457,7.30720602,174.14,174.05,5.74547543]
[1748485955618,21.07117088,174.13,174.05,5.74547543]
[1748485955943,7.30720602,174.14,174.05,5.74547543]
[1748485956146,21.07117088,174.12,174.05,5.74547543]
[1748485956374,7.30720602,174.14,174.05,5.74547543]
[1748485956652,5.74293346,174.13,174.07,21.07117088]
[1748485956852,28.37839463,174.14,174.05,5.74547543]
[1748485957053,1.5647,174.14,174.05,5.74547543]
[1748485957343,0.1,174.15,174.12,21.07117088]
[1748485957513,0.1,174.15,174.08,26.0]
[1748485957714,21.07117088,174.14,174.05,5.74547543]
[1748485957947,21.07117088,174.12,174.05,31.74547543]
[1748485958116,5.84219996,174.15,174.09,21.07117088]
[1748485958316,21.07117088,174.14,174.09,21.07117088]
[1748485958544,21.17117088,174.15,174.07,5.74468766]
[1748485958748,21.07117088,174.14,174.09,21.07117088]
[1748485959027,0.1,174.15,174.07,5.74468766]
[1748485959237,0.1,174.15,174.1,21.07117088]
[1748485959627,0.1,174.15,174.11,21.07117088]
[1748485959946,0.1,174.15,174.07,5.74468766]
[1748485960243,21.07117088,174.12,174.05,114.38516543]
[1748485960445,21.07117088,174.1,174.05,103.71117088]
[1748485960776,21.07117088,174.09,174.05,82.64]
[1748485961045,21.07117088,174.06,174.05,82.64]
[1748485961255,21.7214139,174.11,174.05,82.64]
[1748485961256,21.07117088,174.07,174.05,82.64]
[1748485961422,21.7214139,174.11,174.05,82.64]
[1748485961838,21.07117088,174.06,174.05,82.64]
[1748485962048,21.07117088,174.07,174.05,82.64]
[1748485962258,21.7214139,174.11,174.05,82.64]
[1748485962424,7.36267518,174.11,174.05,82.64]
[1748485962755,5.74443275,174.09,174.05,82.64]
[1748485963133,21.07117088,174.06,173.97,0.40865544]
[1748485963350,6.103,174.08,173.97,0.40865544]
[1748485963653,21.07117088,174.0,173.95,2.94037852]
[1748485963945,1.619,174.02,173.93,82.64]
[1748485964250,21.07117088,174.0,173.93,82.64]
[1748485964476,1.619,174.02,173.93,88.38940023]
[1748485964622,1.619,174.02,173.96,21.07117088]
[1748485964822,1.619,174.02,173.94,5.74903344]
[1748485965024,1.619,174.02,173.97,21.07117088]
[1748485965555,22.69017088,174.02,173.94,8.65709123]
[1748485965734,21.07117088,174.01,173.96,21.07117088]
[1748485966064,1.619,174.02,173.97,21.07117088]
[1748485966065,22.69017088,174.02,173.97,21.07117088]
[1748485966937,22.69017088,174.02,173.95,5.7486705]
[1748485967124,1.619,174.02,173.95,5.7486705]
[1748485967326,21.07117088,174.01,173.95,21.07117088]
[1748485967537,7.36550065,174.02,173.93,88.38920883]
[1748485967856,1.619,174.02,173.96,21.07117088]
[1748485968157,1.619,174.02,173.93,88.38920883]
[1748485968158,7.36549257,174.02,173.93,88.38920883]
[1748485968363,21.07117088,174.01,173.96,21.07117088]
[1748485968570,7.36549257,174.02,173.96,21.07117088]
[1748485968742,21.07117088,174.01,173.94,5.74907019]
[1748485968940,7.36549257,174.02,173.96,21.07117088]
[1748485969145,1.619,174.02,173.98,21.07117088]
[1748485969349,1.619,174.02,173.99,21.07117088]
[1748485969566,1.619,174.02,173.97,26.0]
[1748485969879,5.74544909,174.06,173.97,26.0]
[1748485969880,21.07117088,174.05,174.0,21.07117088]
[1748485970040,1.5763,174.06,174.0,21.07117088]
[1748485970239,1.5763,174.06,173.97,26.0]
[1748485970479,21.07117088,174.05,173.97,26.0]
[1748485970762,21.07117088,174.05,174.0,21.07117088]
[1748485970970,21.07117088,174.05,173.97,26.0]
[1748485971262,7.32145299,174.06,173.99,21.07117088]
[1748485971433,21.07117088,174.04,173.99,21.07117088]
[1748485971636,7.32145299,174.06,173.97,31.74811096]